Cogmind - Beta 13 @@@ ROGUE MODE // 2024.04.08 @ 17:50:41 Player: luckinvolved Result: Destroyed by G-50 Soldier with Heavy Laser Performance ------------- Evolutions (2) 1000 Regions Visited (5) 1000 Robots Destroyed (28) 140 Value Destroyed (1035) 1035 Prototype IDs (2) 40 Alien Tech Used (0) 0 Bonus (25) 25 TOTAL SCORE: 3240 Bonus ------- Follower Combat Kills 25 Cogmind --------- Core Integrity 0/550 Matter 300/300 Energy 35/100 System Corruption 30% Temperature Cool (9) Movement Walking (190) Ox1 Location -8/Materials Parts ------- > --- POWER (2) -------- (None) > --- PROPULSION (4) --- Aluminum Leg > --- UTILITY (3) ------ Small Storage Unit Machine Analyzer > --- WEAPON (2) ------- Particle Gun Beamcaster > --- INVENTORY (8) ---- Improved Heat Sink Medium Matter Pod (100) Sensor Array Reaction Control System Peak State ------------ > --- POWER ------------ Cooled Ion Engine Cooled Ion Engine > --- PROPULSION ------- Aluminum Leg Carbon-fiber Leg Carbon-fiber Leg Titanium Leg > --- UTILITY ---------- Small Storage Unit Machine Analyzer Utility Shielding > --- WEAPON ----------- Pulse Rifle Heavy Particle Gun > --- INVENTORY -------- Improved Ion Engine Aluminum Leg Improved Heat Sink Medium Matter Pod Sensor Array Particle Gun Beamcaster Heavy Assault Rifle [Rating: 29] Favorites ----------- Power Ion Engine Engine Ion Engine Power Core Light Nuclear Core Propulsion Carbon-fiber Leg Treads Light Treads Leg Carbon-fiber Leg Utility Small Storage Unit Device Sensor Array Storage Small Storage Unit Processor Visual Processing Unit Protection Utility Shielding Weapon Light Assault Rifle Energy Gun Particle Gun Ballistic Gun Light Assault Rifle Launcher Shock Bomb Launcher Build | -11 -10 -10 -10 -9 -8 ------- Run | Yrd Mat Min Exi Min Mat Slots Evolved 4 | . . . . . 4 Power 1 | . . . . . 1 Propulsion 2 | . . . . . 2 Utility 1 | . . . . . 1 Weapon . | . . . . . . Parts Attached 40 | 6 7 4 . . 23 Power 7 | 1 1 1 . . 4 Engine 5 | 1 . 1 . . 3 Core 2 | . 1 . . . 1 Reactor . | . . . . . . Propulsion 16 | 2 2 2 . . 10 Treads 2 | . . . . . 2 Leg 14 | 2 2 2 . . 8 Wheel . | . . . . . . Hover . | . . . . . . Flight . | . . . . . . Utility 6 | 1 2 . . . 3 Device 1 | . . . . . 1 Storage 1 | 1 . . . . . Processor 2 | . 1 . . . 1 Hackware . | . . . . . . Protection 2 | . 1 . . . 1 Artifact . | . . . . . . Weapon 11 | 2 2 1 . . 6 Energy Gun 6 | . 2 . . . 4 Energy Cannon . | . . . . . . Ballistic Gun 4 | 2 . 1 . . 1 Ballistic Cannon . | . . . . . . Launcher 1 | . . . . . 1 Special Weapon . | . . . . . . Impact Weapon . | . . . . . . Slashing Weapon . | . . . . . . Piercing Weapon . | . . . . . . Special Melee Weapon . | . . . . . . Unidentified Prototypes 2 | . . . . . 2 Corrupted Parts 5 | . . . . . 5 System Corruption 30 | . . . . . 30 Parts Lost 24 | . 4 1 . 1 18 Power 6 | . . 1 . 1 4 Propulsion 10 | . 2 . . . 8 Utility 1 | . . . . . 1 Weapon 7 | . 2 . . . 5 Highest Loss Streak 7 | . 4 1 . 1 7 To Critical Strikes . | . . . . . . Average Slot Usage (%) 92 | . 93 90 100 90 85 Engine 9 | . 8 7 14 5 11 Core 1 | . 5 5 . . . Leg 26 | . 24 19 28 28 27 Storage 12 | . 14 14 14 14 9 Processor 11 | . 5 14 14 14 7 Protection 3 | . 6 . . . 9 Energy Gun 13 | . 5 20 14 14 11 Ballistic Gun 12 | . 21 7 14 14 4 Naked Turns . | . . . . . . Heaviest Build 28 | 13 15 15 14 14 28 Greatest Support 57 | 20 20 30 30 30 57 Greatest Overweight (x) 6 | . 1 1 . . 6 Average Overweight (x) . | . . . . . . Largest Inventory Capacity 8 | 8 8 8 8 8 8 Average Capacity 7 | 6 8 8 8 8 8 Most Carried 8 | 6 8 8 8 8 8 Average Carried 7 | 3 7 7 7 8 6 Final Capacity 8 | 8 8 8 8 8 8 Final Carried 8 | 6 8 7 8 8 4 Class Distribution -------------------- 75% | Scavenger-Mutant 24% | Mutant Dominant Class ---------------- Mutant | -10/Materials Scavenger-Mutant | -10/Mines Scavenger-Mutant | -10/Exiles Scavenger-Mutant | -9/Mines Scavenger-Mutant | -8/Materials Resources | -11 -10 -10 -10 -9 -8 ----------- Run | Yrd Mat Min Exi Min Mat Matter Collected 681 | 247 105 90 1 13 225 Remotely . | . . . . . . Salvage Created 1276 | . 193 122 . 125 836 Parts 67 | . 10 4 . 8 45 Haulers Intercepted . | . . . . . . Recyclers Shooed 6 | . . 1 . 2 3 Parts Field Recycled . | . . . . . . Retrieved Matter . | . . . . . . Parts Self-Destructed . | . . . . . . Prevented . | . . . . . . Kills | -11 -10 -10 -10 -9 -8 ------- Run | Yrd Mat Min Exi Min Mat Combat Hostiles Destroyed 23 | . 4 2 . 3 14 Guns 19 | . 4 2 . 3 10 AOE 4 | . . . . . 4 Classes Destroyed 7 | . 2 2 . . 3 Worker 2 | . . . . . 2 Recycler 1 | . . 1 . . . Watcher 2 | . 1 . . . 1 Swarmer 1 | . . 1 . . . Grunt 17 | . 4 1 . 3 9 Brawler 1 | . . . . . 1 Sentry 4 | . . . . . 4 Best Kill Streak 10 | . 3 1 . 1 10 Combat Bots Only 9 | . 2 1 . 1 9 Max Kills in Single Turn 2 | . 1 1 . 1 2 Gunslinging . | . . . . . . Exploded 2 | . . . . . 2 Melee . | . . . . . . Uniques/NPCs Destroyed . | . . . . . . Combat | -11 -10 -10 -10 -9 -8 -------- Run | Yrd Mat Min Exi Min Mat Hostile Shots Fired 324 | . 70 7 . 46 201 Missed 88 | . 17 3 . 17 51 Damage Taken 3548 | . 693 30 . 420 2405 Core 792 | . 122 7 . 112 551 Absorbed by Shields . | . . . . . . Redirected to Shielding 30 | . . . . . 30 Core Remaining (%) 51 | 100 . . . 3 . Volleys Fired 95 | . 30 7 . 22 36 Largest 2 | . 2 2 . 2 2 Hottest 140 | . 115 115 . 85 140 Shots Fired 179 | . 54 14 . 39 72 Gun 172 | . 54 14 . 39 65 Cannon . | . . . . . . Launcher 7 | . . . . . 7 Special . | . . . . . . Kinetic 83 | . 47 2 . 17 17 Thermal 89 | . 7 12 . 22 48 Explosive . | . . . . . . Electromagnetic 7 | . . . . . 7 Robot Hit Streak 18 | . 5 3 . 4 18 Robot Miss Streak 5 | . 3 2 . 5 4 Penetration Max . | . . . . . . Secondary Targets 6 | . 2 . . . 4 Max Gunslinging Chain 1 | . 1 . . . 1 Shots Hit Robots 118 | . 36 8 . 23 51 Core Hits 56 | . 12 6 . 6 32 Critical Kills . | . . . . . . Critical Parts Destroyed . | . . . . . . Critical Strikes 6 | . 1 1 . 2 2 Burn 6 | . 1 1 . 2 2 Melee Attacks . | . . . . . . Impact . | . . . . . . Slashing . | . . . . . . Piercing . | . . . . . . Sneak Attacks . | . . . . . . Combat Hostiles . | . . . . . . Follow-up Attacks . | . . . . . . Damage Inflicted 2559 | . 402 115 . 312 1730 Guns 1783 | . 402 115 . 312 954 Cannons . | . . . . . . Explosions 776 | . . . . . 776 Melee . | . . . . . . Ramming . | . . . . . . Kinetic 611 | . 332 . . 73 206 Thermal 1172 | . 70 115 . 239 748 Explosive . | . . . . . . Electromagnetic 776 | . . . . . 776 Impact . | . . . . . . Slashing . | . . . . . . Piercing . | . . . . . . Highest Corruption 30 | . . . . . 30 Average Corruption 17 | . . . . . 17 Corruption Purged . | . . . . . . Corruption Blocked . | . . . . . . Effects 6 | . . . . . 6 Message Errors 1 | . . . . . 1 Energy Discharges 1 | . . . . . 1 Data Loss (minor) 3 | . . . . . 3 Misdirections 1 | . . . . . 1 Overload Shots . | . . . . . . Overflow Damage 30 | . . . . . 30 Projectiles . | . . . . . . Explosions 30 | . . . . . 30 Melee . | . . . . . . Knockbacks . | . . . . . . Impact . | . . . . . . Kinetic . | . . . . . . Secondary . | . . . . . . Self-Inflicted Damage 8 | . . . . . 8 Shots 1 | . . . . . 1 Rammed . | . . . . . . Targets Rammed . | . . . . . . Kicked . | . . . . . . Crushed . | . . . . . . Highest Temperature 297 | . 126 120 . 285 297 Average Temperature 92 | . 38 53 . 120 110 Received Heat Transfer 1851 | . 411 . . 270 1170 Effects 6 | . . . . 6 . Interference 6 | . . . . 6 . Siege Activations . | . . . . . . Robots Corrupted . | . . . . . . Combat Hostiles . | . . . . . . Parts Fried 2 | . . . . . 2 Impact Corruptions . | . . . . . . Robots Melted 1 | . . . . . 1 Combat Hostiles . | . . . . . . Parts Melted 4 | . . 2 . . 2 Heat Transferred 2960 | . 259 370 . 740 1591 Parts Sabotaged . | . . . . . . Parts Stolen . | . . . . . . Parts Stripped . | . . . . . . Power Chain Reactions . | . . . . . . Alert | -11 -10 -10 -10 -9 -8 ------- Run | Yrd Mat Min Exi Min Mat Peak Influence 312 | . 97 122 . 75 312 Initial 37 | . . 37 . . . Average 61 | . 41 100 . 31 93 Maximum Alert Level 1 | . . . . . 1 Low Security (%) 98 | 100 100 100 . 100 93 Level 1 1 | . . . . . 6 Level 2 . | . . . . . . Level 3 . | . . . . . . Level 4 . | . . . . . . Level 5 . | . . . . . . High Security . | . . . . . . Max Security . | . . . . . . Squads Dispatched 1 | . . . . . 1 Investigation . | . . . . . . Extermination . | . . . . . . Reinforcement 1 | . . . . . 1 Assault . | . . . . . . Garrison . | . . . . . . Intercept . | . . . . . . Searches Triggered . | . . . . . . Construction Impeded . | . . . . . . Haulers Reinforced . | . . . . . . Active Scanning Responses . | . . . . . . Cargo Convoy Interrupts . | . . . . . . Stealth | -11 -10 -10 -10 -9 -8 --------- Run | Yrd Mat Min Exi Min Mat Distress Signals 3 | . 2 . . . 1 Communications Jammed . | . . . . . . Distress Signals . | . . . . . . Times Spotted 55 | . 11 4 . 7 33 Peak Tracking Total 14 | . 3 2 . 3 14 Tactical Retreats 4 | . . . . 1 3 Traps | -11 -10 -10 -10 -9 -8 ------- Run | Yrd Mat Min Exi Min Mat Traps Triggered . | . . . . . . Indirectly . | . . . . . . Trap Hack Attempts . | . . . . . . Triggered . | . . . . . . Disarmed . | . . . . . . Reprogrammed . | . . . . . . Reused . | . . . . . . Traps Extracted . | . . . . . . Installed . | . . . . . . Triggered . | . . . . . . Machines | -11 -10 -10 -10 -9 -8 ---------- Run | Yrd Mat Min Exi Min Mat Machines Disabled 1 | . . . . . 1 Max in Single Turn 1 | . . . . . 1 Machines Repaired . | . . . . . . Machines Dismantled . | . . . . . . Machines Sabotaged . | . . . . . . Overloaded Fab Kills . | . . . . . . Hacking | -11 -10 -10 -10 -9 -8 --------- Run | Yrd Mat Min Exi Min Mat Machines Accessed . | . . . . . . Terminals . | . . . . . . Fabricators . | . . . . . . Repair Stations . | . . . . . . Recycling Units . | . . . . . . Scanalyzers . | . . . . . . Garrison Access . | . . . . . . Total Hacks . | . . . . . . Successful . | . . . . . . Failed . | . . . . . . Catastrophic . | . . . . . . Database Lockouts . | . . . . . . Manual . | . . . . . . Terminals . | . . . . . . Fabricators . | . . . . . . Repair Stations . | . . . . . . Recycling Units . | . . . . . . Scanalyzers . | . . . . . . Garrison Access . | . . . . . . Terminal Hacks . | . . . . . . Fabricator Hacks . | . . . . . . Repair Station Hacks . | . . . . . . Recycling Unit Hacks . | . . . . . . Scanalyzer . | . . . . . . Garrison Access Hacks . | . . . . . . Unauthorized Hacks . | . . . . . . Terminals . | . . . . . . Fabricators . | . . . . . . Repair Stations . | . . . . . . Recycling Units . | . . . . . . Scanalyzers . | . . . . . . Garrison Access . | . . . . . . Data Cores Recovered . | . . . . . . Used . | . . . . . . Hacking Detections . | . . . . . . Full Trace Events . | . . . . . . Feedback Events . | . . . . . . Feedback Blocked . | . . . . . . Robot Schematics Acquired . | . . . . . . Robots Built . | . . . . . . Authchips . | . . . . . . Time . | . . . . . . Total Robot Build Rating . | . . . . . . Part Schematics Acquired . | . . . . . . Parts Built . | . . . . . . Authchips . | . . . . . . Time . | . . . . . . Total Part Build Rating . | . . . . . . Parts Repaired . | . . . . . . Time . | . . . . . . Parts Recycled . | . . . . . . Recycled Matter . | . . . . . . Retrieved Matter . | . . . . . . Retrieved Components . | . . . . . . Parts Scanalyzed . | . . . . . . Part Schematics Acquired . | . . . . . . Parts Damaged . | . . . . . . Bothacking | -11 -10 -10 -10 -9 -8 ------------ Run | Yrd Mat Min Exi Min Mat Used RIF Installer . | . . . . . . Robots Hacked . | . . . . . . Non-combat . | . . . . . . Combat . | . . . . . . Robot Hacks Applied . | . . . . . . Relay Couplers Released . | . . . . . . Fabnet Peak Effective % . | . . . . . . Robots Rewired . | . . . . . . Allies Hacked . | . . . . . . Hacks Repelled . | . . . . . . Allies | -11 -10 -10 -10 -9 -8 -------- Run | Yrd Mat Min Exi Min Mat Total Allies 3 | . . 2 . 1 . Largest Group 2 | . . 2 1 1 . Highest-Rated Group 42 | . . 42 31 31 . Highest-Rated Ally 31 | . . 31 31 31 . Total Orders . | . . . . . . Ally Attacks 12 | . . 8 . 4 . Total Damage 145 | . . 103 . 42 . Kills 1 | . . 1 . . . Allies Corrupted . | . . . . . . Allies Melted . | . . . . . . Intel | -11 -10 -10 -10 -9 -8 ------- Run | Yrd Mat Min Exi Min Mat Robot Analysis Total . | . . . . . . Derelict Logs Recovered 1 | . . 1 . . . Drone Launches . | . . . . . . Drone Recoveries . | . . . . . . Exploration | -11 -10 -10 -10 -9 -8 ------------- Run | Yrd Mat Min Exi Min Mat Turns Passed 2363 | 83 396 319 600 476 489 Spaces Moved 1522 | 61 202 193 500 337 229 Core 8 | 7 . . . . 1 Treads 7 | . . . . . 7 Legs 1507 | 54 202 193 500 337 221 Wheels . | . . . . . . Hover . | . . . . . . Flight . | . . . . . . Fastest Speed 50 | 50 120 120 120 120 120 Average Speed 125 | 111 133 147 120 120 125 Slowest Speed 350 | 120 190 190 120 120 350 Overloaded Moves . | . . . . . . Propulsion Burnouts . | . . . . . . Robots Hopped . | . . . . . . Cave-ins Triggered . | . . . . . . Exploration Rate (%) 43 | 4 30 34 90 78 25 Regions Visited 5 Branch Regions 3 Pre-discovered Areas 1 | . . 1 . . . Known Exits Taken . | . . . . . . Unknown Exits Taken 5 | 1 1 1 1 1 . Scrap Searched 2 | . . . . 2 . Spaces Dug . | . . . . . . Terrain Destroyed . | . . . . . . Melee . | . . . . . . Projectile . | . . . . . . AOE . | . . . . . . Terrain Rammed . | . . . . . . Walls Destroyed . | . . . . . . Machines Disabled . | . . . . . . Actions | -11 -10 -10 -10 -9 -8 --------- Run | Yrd Mat Min Exi Min Mat Total 1795 | 72 280 216 500 373 354 Wait 105 | . 32 3 . 15 55 Move 1517 | 60 201 192 499 336 229 Hop . | . . . . . . Pick Up 22 | 6 6 4 1 . 5 Fast Attach 24 | 6 3 3 . . 12 Attach 12 | . 2 1 . . 9 Detach 1 | . . . . . 1 Swap 4 | . 2 . . . 2 Drop 15 | . 4 6 . . 5 Fire 95 | . 30 7 . 22 36 Melee . | . . . . . . Ram . | . . . . . . Kick . | . . . . . . Crush . | . . . . . . Escape Stasis . | . . . . . . Rewire . | . . . . . . Trap . | . . . . . . Miscellaneous . | . . . . . . Route ------- -11/Scrapyard -10/Materials -10/Mines -10/Exiles (discovered 2 exits: [*Min x2]) -9/Mines -8/Materials History --------- Turn | Location | Event 8 | -11/Scrapyard | Discovered new exit (range 16) 84 | -11/Scrapyard | Entered Materials 116 | -10/Materials | Discovered new exit (range 6) 307 | -10/Materials | Build established: Mutant 428 | -10/Materials | Lost 4 parts (2n2w) 480 | -10/Materials | Entered Mines 513 | -10/Mines | Learned location of Zion (-7) 620 | -10/Mines | Core integrity fell below 50% 724 | -10/Mines | Assembled infested the area 793 | -10/Mines | Deemed a non-threat by the Exiles lab entrance 793 | -10/Mines | Discovered new exit (range 5) 799 | -10/Mines | Entered Exiles 799 | -10/Exiles | Accompanied by 1 ally 819 | -10/Exiles | Discovered new exit (range 16) 829 | -10/Exiles | Led the pair of lost Derelicts to a safe place 841 | -10/Exiles | Met 8R-AWN 863 | -10/Exiles | Met EX-HEX 897 | -10/Exiles | Met EX-BIN 923 | -10/Exiles | Build established: Scavenger-Mutant 1008 | -10/Exiles | Met EX-DEC 1129 | -10/Exiles | Discovered new exit (range 12) 1220 | -10/Exiles | Visited The Gauntlet 1399 | -10/Exiles | Entered Mines 1402 | -9/Mines | Received a Mining Laser from a helpful Derelict 1638 | -9/Mines | Core integrity fell below 20% 1868 | -9/Mines | Discovered new exit (range 7) 1875 | -9/Mines | Entered Materials 1875 | -8/Materials | Evolved 4 slots: Power x1, Propulsion x2, Utility x1 2216 | -8/Materials | Lost 4 parts (3n1w) 2238 | -8/Materials | Core integrity fell below 50% 2287 | -8/Materials | Lost 6 parts (2p2n2w) 2303 | -8/Materials | Destroyed 9 combat bots 2303 | -8/Materials | System corruption reached 10% 2319 | -8/Materials | System corruption reached 30% 2342 | -8/Materials | Core integrity fell below 20% 2364 | -8/Materials | Destroyed by G-50 Soldier with Heavy Laser Last Messages --------------- 02356_ K-01 Serf destroyed. 02356_ R-06 Scavenger inserts Corrupted Aluminum Leg into recycling unit. 02357_ Recycling unit begins recycling process. 02357_ K-01 Serf collects debris. 02358_ Penetrated by Slug. 02358_ R-06 Scavenger collects Lgt. Armor Plating. 02359_ K-01 Serf collects debris. 02359_ R-06 Scavenger inserts Corrupted Aluminum Leg into recycling unit. 02361_ Penetrated by Slug. 02361_ Carbon-fiber Leg destroyed. 02362_ K-01 Serf collects debris. 02362_ R-06 Scavenger inserts Corrupted Imp. Heat Sink into recycling unit. 02363_ Recycling unit begins recycling process. 02364_ Slug penetrates Wall. 02364_ Utility Shielding destroyed. 02364_ R-06 Scavenger collects Med. Matter Pod. Map ----- +----------------------------------------------------+ | ????????????????????????????????????????"""??????? | | ????????????????????????????????????????"""??????? | | ?????????????????????????????????????????????????? | | ?????????????#???????????????????????????????????? | | ?????????? ???????"""?????????????????????????? | | ??????????? ???????"""?????????????"T"?????????? | | ??????????? ??????"""?????????????"""?????????? | | ???????????# ??????????????????####????????????? | | ???????????# ????????????????? ????????????? | | ???????????# ????????????????? ????????????? | | ???????????+ ????????????????? ????????????? | | ???????????# ????????????????? #?????????????? | | ???????????# ???????????###### #?????????????? | | ??????????## ##?????#####"T ## #???"""?"""???? | | ??????????# #######= t #???"""?"""???? | | ??????????# u=% k #???"""?"""???? | | ??????????# [[ #?????????????? | | ??????????# % %= = k #?????????????? | | ??????????# ####### % % ##########?????? | | ??????????### #?????#=[g= r # #?????? | | ????????????# #?????# %! /[ # """ #?????? | | ????????????# #?##### g = % # """ #?????? | | ????????????# #?# # % # """ ] #?????? | | ????????????# #?# "# # k ]#?????? | | ????????????# #?# T# h/=""" #?????? | | ????????????# ### "# @ r !*# """ ####### | | ????????????# #? #####"Y"# %#= "" / | | ????????????# #?# #???#"""# # ####### | | ???????????## ### #???##### ##########?????? | | ?########### ###+########## #??????????????? | | #?"""??????????? | | #?"""??????????? | | #?"""??????????? | | ?########### ############## #?"""??????????? | | ???????????## ##????????????# #?"""??????????? | | ????????????# #?????????"""?# #??????????????? | | ????????????# #?????????"""?# #??????????????? | | ??????????? + #####?????"""?# ??????????????? | | ????????"?" # %!= +?????????+ ?????????????? | | ????????"R" # #####?????????# ????????????? | | ????????"""?# #?????????????? ###+???????????? | | ????????###?## ##?????????????? #??????????????? | | ?????????????# #??????????????? #??????????????? | | ??????########+#??????????????? #??????????????? | | ??????# %#??????????????? #"?????????????? | | ??????# #???????????????????T?????????????? | | ??????# #?????????T?????????"?????????????? | | ??????# #?????????????????????????????????? | | ??????# // #???"""?"""???????????????????????? | | ??????# // #???"""?"""???????????????????????? | +----------------------------------------------------+ Best States ------------- Heat Dissipation 31 Energy Generation 23 Energy Capacity 460 Matter Stores 300 Matter Capacity 300 Sight Range 18 Robot Scan Range 14 Terrain Scan Density 10 Utility Shielding 33 Evasion (%) 55 Recoil Reduction 2 Item Schematics ----------------- None Robot Schematics ------------------ None Fabricated ------------ Nothing Alien Tech Used ----------------- None Achievements -------------- None Challenges ------------ None Game ------ Seed AdvancedPoweredTerminator Manual? 0 Play Time 00:19:54 Cumulative 11.4 hours Start 2024.04.08 @ 17:34:04 End 2024.04.08 @ 17:50:41 Sessions 1 Manual Loads 0 Difficulty Rogue Special Mode None Game No. 27 Rogue 22 Adventurer 5 Explorer 0 Win Type - Total 0 Types 0/0/0/0/0/0/0/0/0 Lore% 2 Gallery% 21 Achievement% 15 Wizard Run 0 Options --------- Layout 1 ASCII 0 Keyboard 0 Movement Mouse Keybinds 0 Fullscreen 2 Font 32/SmallcapsGlow Map View 50x35 Zoom Use 0% Tactical HUD 1 Map Filters NONE Filters NONE Steam 1 RUN: 4f48e93e-55f6-4683-b804-a7ccfc5a060b